[Event "Late-Titled-Tuesday-Blitz-June-18-2024"]
[Site "Chess.com"]
[Date "2024.06.18"]
[Round "11"]
[White "enriquebutti"]
[Black "nitpicker"]
[Result "1-0"]
[WhiteElo "2132"]
[BlackElo "2331"]
[TimeControl "180+1"]
[EndTime "16:06:08 PDT"]
[Termination "enriquebutti won on time"]

1. Nf3 {[%clk 0:02:58.9]} 1... Nf6 {[%clk 0:02:58.3]} 2. c4 {[%clk 0:02:57.4]}
2... e6 {[%clk 0:02:57.1]} 3. Nc3 {[%clk 0:02:54.9]} 3... d5 {[%clk 0:02:57]} 4.
d4 {[%clk 0:02:54.5]} 4... Bb4 {[%clk 0:02:55.5]} 5. cxd5 {[%clk 0:02:52.4]}
5... exd5 {[%clk 0:02:54.9]} 6. Bg5 {[%clk 0:02:51.7]} 6... Nbd7 {[%clk
0:02:54.8]} 7. e3 {[%clk 0:02:48.8]} 7... O-O {[%clk 0:02:48.6]} 8. Bd3 {[%clk
0:02:47.8]} 8... Re8 {[%clk 0:02:34.7]} 9. O-O {[%clk 0:02:46.8]} 9... c6 {[%clk
0:02:21.8]} 10. Qc2 {[%clk 0:02:45.1]} 10... h6 {[%clk 0:02:20.1]} 11. Bh4
{[%clk 0:02:43.8]} 11... Bd6 {[%clk 0:02:18.4]} 12. Rab1 {[%clk 0:02:36.8]}
12... b6 {[%clk 0:02:12]} 13. e4 {[%clk 0:02:17.7]} 13... g5 {[%clk 0:01:39]}
14. Bg3 {[%clk 0:02:16.2]} 14... Bxg3 {[%clk 0:01:33.9]} 15. fxg3 {[%clk
0:02:15.1]} 15... dxe4 {[%clk 0:01:31.7]} 16. Nxe4 {[%clk 0:02:14.3]} 16... Nxe4
{[%clk 0:01:28.8]} 17. Bxe4 {[%clk 0:02:13.7]} 17... Bb7 {[%clk 0:01:28.9]} 18.
Rbe1 {[%clk 0:01:41.6]} 18... Rc8 {[%clk 0:01:24]} 19. Kh1 {[%clk 0:01:35.8]}
19... Kg7 {[%clk 0:01:04.2]} 20. Bf5 {[%clk 0:01:24.5]} 20... Rc7 {[%clk
0:01:00.8]} 21. Ne5 {[%clk 0:01:20.1]} 21... Nxe5 {[%clk 0:00:54.4]} 22. dxe5
{[%clk 0:01:19.4]} 22... c5 {[%clk 0:00:48.5]} 23. e6 {[%clk 0:01:12]} 23... f6
{[%clk 0:00:42.1]} 24. Bh7 {[%clk 0:01:07]} 24... Qe7 {[%clk 0:00:38.1]} 25.
Qg6+ {[%clk 0:01:05.1]} 25... Kh8 {[%clk 0:00:38.3]} 26. Rxf6 {[%clk 0:01:03.2]}
26... Qxf6 {[%clk 0:00:20.3]} 27. Qxf6+ {[%clk 0:00:59.2]} 27... Kxh7 {[%clk
0:00:20.8]} 28. e7 {[%clk 0:00:54]} 28... Bd5 {[%clk 0:00:15.5]} 29. Qf5+ {[%clk
0:00:50.4]} 29... Kg7 {[%clk 0:00:10.6]} 30. Qxd5 {[%clk 0:00:49.5]} 30... Rcxe7
{[%clk 0:00:11.3]} 31. Rxe7+ {[%clk 0:00:47.3]} 31... Rxe7 {[%clk 0:00:12.2]}
32. h3 {[%clk 0:00:46.3]} 32... Kg6 {[%clk 0:00:08.4]} 33. Qd6+ {[%clk
0:00:45.7]} 33... Kf7 {[%clk 0:00:08.1]} 34. Qxh6 {[%clk 0:00:43.5]} 1-0

[Event "Late-Titled-Tuesday-Blitz-June-18-2024"]
[Site "Chess.com"]
[Date "2024.06.18"]
[Round "11"]
[White "szefru"]
[Black "AldokhinIvan"]
[Result "0-1"]
[WhiteElo "2376"]
[BlackElo "2663"]
[TimeControl "180+1"]
[EndTime "16:06:10 PDT"]
[Termination "AldokhinIvan won by resignation"]

1. e4 {[%clk 0:03:00.9]} 1... c5 {[%clk 0:02:57.8]} 2. Nf3 {[%clk 0:03:00.7]}
2... e6 {[%clk 0:02:58.5]} 3. b3 {[%clk 0:03:00.4]} 3... b6 {[%clk 0:02:58.4]}
4. Bb2 {[%clk 0:02:59.4]} 4... Bb7 {[%clk 0:02:59]} 5. d3 {[%clk 0:02:49]} 5...
Nf6 {[%clk 0:02:58]} 6. e5 {[%clk 0:02:47.2]} 6... Nd5 {[%clk 0:02:57.8]} 7. c4
{[%clk 0:02:38]} 7... Nf4 {[%clk 0:02:47.8]} 8. g3 {[%clk 0:02:38.1]} 8... Ng6
{[%clk 0:02:47.7]} 9. Bg2 {[%clk 0:02:37.3]} 9... Nc6 {[%clk 0:02:47.7]} 10. O-O
{[%clk 0:02:35.9]} 10... d5 {[%clk 0:02:43.9]} 11. h4 {[%clk 0:01:48]} 11... d4
{[%clk 0:02:32.6]} 12. Qe2 {[%clk 0:01:47.5]} 12... Qc7 {[%clk 0:02:31.4]} 13.
Re1 {[%clk 0:01:41.8]} 13... Be7 {[%clk 0:02:24.7]} 14. h5 {[%clk 0:01:39.4]}
14... Nf8 {[%clk 0:02:24.8]} 15. Nbd2 {[%clk 0:01:22.9]} 15... Nd7 {[%clk
0:02:22.3]} 16. a3 {[%clk 0:01:11.6]} 16... a5 {[%clk 0:02:21.8]} 17. Rab1
{[%clk 0:00:49.8]} 17... O-O {[%clk 0:02:12]} 18. Bc1 {[%clk 0:00:49]} 18... h6
{[%clk 0:02:03.5]} 19. g4 {[%clk 0:00:43.8]} 19... Rae8 {[%clk 0:01:52.1]} 20.
Nf1 {[%clk 0:00:43.5]} 20... f5 {[%clk 0:01:49.2]} 21. exf6 {[%clk 0:00:39.4]}
21... Bxf6 {[%clk 0:01:44.2]} 22. g5 {[%clk 0:00:38.7]} 22... hxg5 {[%clk
0:01:42.9]} 23. Bxg5 {[%clk 0:00:38.7]} 23... Bxg5 {[%clk 0:01:36.4]} 24. Nxg5
{[%clk 0:00:39.6]} 24... Nce5 {[%clk 0:01:36.8]} 25. Ng3 {[%clk 0:00:20.9]}
25... Rf5 {[%clk 0:01:31.6]} 26. N3e4 {[%clk 0:00:20.7]} 26... Qd8 {[%clk
0:01:22.2]} 27. Qd2 {[%clk 0:00:19.3]} 27... Qe7 {[%clk 0:01:13.2]} 28. f4
{[%clk 0:00:19.4]} 28... Ng4 {[%clk 0:01:08.5]} 29. Bh3 {[%clk 0:00:19.6]} 29...
Ne3 {[%clk 0:01:09.2]} 30. Bxf5 {[%clk 0:00:19.3]} 30... exf5 {[%clk 0:01:08.7]}
31. Ng3 {[%clk 0:00:18.9]} 31... Nf6 {[%clk 0:01:08.1]} 32. Qf2 {[%clk
0:00:18.5]} 32... Nfg4 {[%clk 0:01:08.4]} 33. Qd2 {[%clk 0:00:18.1]} 33... Qd6
{[%clk 0:01:08.9]} 34. Rf1 {[%clk 0:00:16.6]} 34... Qc6 {[%clk 0:01:08.3]} 35.
Rbe1 {[%clk 0:00:11.3]} 35... Nf6 {[%clk 0:01:07.4]} 36. Rf2 {[%clk 0:00:07.9]}
36... Nxh5 {[%clk 0:01:04]} 37. N3e4 {[%clk 0:00:07.9]} 37... fxe4 {[%clk
0:01:03]} 38. dxe4 {[%clk 0:00:08.8]} 38... Nf6 {[%clk 0:01:01.2]} 39. Rh2
{[%clk 0:00:06.2]} 39... Nxe4 {[%clk 0:01:01.1]} 40. Nxe4 {[%clk 0:00:04]} 40...
Qxe4 {[%clk 0:01:01.6]} 41. Qf2 {[%clk 0:00:03.9]} 41... Qg6+ {[%clk 0:01:00.8]}
0-1

[Event "Late-Titled-Tuesday-Blitz-June-18-2024"]
[Site "Chess.com"]
[Date "2024.06.18"]
[Round "11"]
[White "betta2004"]
[Black "bazar-wokzal"]
[Result "1-0"]
[WhiteElo "2495"]
[BlackElo "2575"]
[TimeControl "180+1"]
[EndTime "16:06:11 PDT"]
[Termination "betta2004 won by checkmate"]

1. Nf3 {[%clk 0:03:00.9]} 1... c5 {[%clk 0:02:57.7]} 2. b3 {[%clk 0:02:59.9]}
2... Nc6 {[%clk 0:02:55.1]} 3. Bb2 {[%clk 0:02:59.5]} 3... d5 {[%clk 0:02:55.1]}
4. e3 {[%clk 0:02:59.6]} 4... a6 {[%clk 0:02:55.2]} 5. d4 {[%clk 0:02:58.1]}
5... Bg4 {[%clk 0:02:53.3]} 6. Nbd2 {[%clk 0:02:58.3]} 6... Nf6 {[%clk
0:02:51.7]} 7. h3 {[%clk 0:02:57.4]} 7... Bh5 {[%clk 0:02:51.5]} 8. Bd3 {[%clk
0:02:57]} 8... e6 {[%clk 0:02:50.8]} 9. g4 {[%clk 0:02:54.8]} 9... Bg6 {[%clk
0:02:50.3]} 10. Ne5 {[%clk 0:02:55.3]} 10... Qc7 {[%clk 0:02:40.2]} 11. Bxg6
{[%clk 0:02:48.3]} 11... hxg6 {[%clk 0:02:39.8]} 12. f4 {[%clk 0:02:48.8]} 12...
cxd4 {[%clk 0:02:25.1]} 13. exd4 {[%clk 0:02:38.8]} 13... Rc8 {[%clk 0:02:20.8]}
14. a3 {[%clk 0:02:32.7]} 14... Nd7 {[%clk 0:02:15.6]} 15. Rc1 {[%clk
0:02:30.7]} 15... Ncxe5 {[%clk 0:02:04.8]} 16. fxe5 {[%clk 0:02:28.8]} 16... Be7
{[%clk 0:01:58.4]} 17. Nf3 {[%clk 0:02:26.5]} 17... f6 {[%clk 0:01:57.1]} 18.
Qd3 {[%clk 0:02:26.1]} 18... Rh6 {[%clk 0:01:28]} 19. O-O {[%clk 0:02:20.6]}
19... fxe5 {[%clk 0:01:05.1]} 20. Nxe5 {[%clk 0:02:09.9]} 20... Nxe5 {[%clk
0:01:03.5]} 21. dxe5 {[%clk 0:02:10.8]} 21... Bg5 {[%clk 0:00:58]} 22. Rf2
{[%clk 0:01:40.2]} 22... Qc5 {[%clk 0:00:44.4]} 23. Bd4 {[%clk 0:01:39.7]} 23...
Qxa3 {[%clk 0:00:42.4]} 24. Rcf1 {[%clk 0:01:40.1]} 24... Rc7 {[%clk 0:00:26.8]}
25. Bb6 {[%clk 0:01:22]} 25... Rc6 {[%clk 0:00:17.8]} 26. Bd4 {[%clk 0:00:40.2]}
26... Be7 {[%clk 0:00:17.8]} 27. Rf7 {[%clk 0:00:37.4]} 27... Qb4 {[%clk
0:00:15.1]} 28. Kg2 {[%clk 0:00:33.7]} 28... Qb5 {[%clk 0:00:14]} 29. Qd2 {[%clk
0:00:21.4]} 29... Qb4 {[%clk 0:00:13.7]} 30. c3 {[%clk 0:00:21.3]} 30... Qxb3
{[%clk 0:00:13.1]} 31. Qf2 {[%clk 0:00:21.9]} 31... Kd7 {[%clk 0:00:12.2]} 32.
Rxe7+ {[%clk 0:00:20.9]} 32... Kxe7 {[%clk 0:00:12.6]} 33. Qf8+ {[%clk
0:00:21.5]} 33... Kd7 {[%clk 0:00:12.8]} 34. Rf7# {[%clk 0:00:22.4]} 1-0

[Event "Late-Titled-Tuesday-Blitz-June-18-2024"]
[Site "Chess.com"]
[Date "2024.06.18"]
[Round "11"]
[White "EternalNight8"]
[Black "aexmi"]
[Result "0-1"]
[WhiteElo "2388"]
[BlackElo "2304"]
[TimeControl "180+1"]
[EndTime "16:06:13 PDT"]
[Termination "aexmi won by checkmate"]

1. e4 {[%clk 0:03:00.9]} 1... c5 {[%clk 0:02:27.9]} 2. Nf3 {[%clk 0:02:59.1]}
2... g6 {[%clk 0:02:28]} 3. d4 {[%clk 0:02:58.4]} 3... cxd4 {[%clk 0:02:28.9]}
4. Nxd4 {[%clk 0:02:58.6]} 4... Nc6 {[%clk 0:02:27.8]} 5. Be3 {[%clk 0:02:57.5]}
5... Bg7 {[%clk 0:02:26.3]} 6. Nc3 {[%clk 0:02:57.5]} 6... Nf6 {[%clk
0:02:26.8]} 7. Bc4 {[%clk 0:02:57.7]} 7... Qa5 {[%clk 0:02:26.8]} 8. O-O {[%clk
0:02:55.9]} 8... O-O {[%clk 0:02:26.3]} 9. Bb3 {[%clk 0:02:55.4]} 9... d6 {[%clk
0:02:26.5]} 10. h3 {[%clk 0:02:48.2]} 10... a6 {[%clk 0:02:26.2]} 11. a4 {[%clk
0:02:44]} 11... Bd7 {[%clk 0:02:26]} 12. f4 {[%clk 0:02:42.3]} 12... Rac8 {[%clk
0:02:25.5]} 13. Qf3 {[%clk 0:02:39.8]} 13... Qh5 {[%clk 0:02:24.7]} 14. g4
{[%clk 0:02:28.9]} 14... Bxg4 {[%clk 0:02:11.1]} 15. hxg4 {[%clk 0:02:29.1]}
15... Nxg4 {[%clk 0:02:11.3]} 16. Rfd1 {[%clk 0:02:12.2]} 16... Qh2+ {[%clk
0:02:01.3]} 17. Kf1 {[%clk 0:02:12.2]} 17... Nxe3+ {[%clk 0:02:01]} 18. Qxe3
{[%clk 0:02:12.3]} 18... Nxd4 {[%clk 0:01:42.9]} 19. Rxd4 {[%clk 0:02:11.9]}
19... Bxd4 {[%clk 0:01:41]} 20. Qxd4 {[%clk 0:02:12.8]} 20... Qxf4+ {[%clk
0:01:40.1]} 21. Ke2 {[%clk 0:02:06.3]} 21... Qg4+ {[%clk 0:01:34.3]} 22. Kd2
{[%clk 0:02:06]} 22... Qg2+ {[%clk 0:01:21.6]} 23. Ne2 {[%clk 0:02:03]} 23...
Rc5 {[%clk 0:01:05.7]} 24. Rg1 {[%clk 0:01:57.3]} 24... Qh2 {[%clk 0:01:06.2]}
25. Qe3 {[%clk 0:01:40.8]} 25... Re5 {[%clk 0:00:51.3]} 26. Rf1 {[%clk
0:01:31.5]} 26... Qg2 {[%clk 0:00:45.1]} 27. Rf3 {[%clk 0:00:54.6]} 27... e6
{[%clk 0:00:39.9]} 28. Ke1 {[%clk 0:00:42.8]} 28... Rh5 {[%clk 0:00:38]} 29. Rf2
{[%clk 0:00:41.3]} 29... Qg5 {[%clk 0:00:32.2]} 30. Nf4 {[%clk 0:00:40.5]} 30...
Rh1+ {[%clk 0:00:27.3]} 31. Ke2 {[%clk 0:00:40]} 31... Qg4+ {[%clk 0:00:26.8]}
32. Rf3 {[%clk 0:00:31.4]} 32... Rh2+ {[%clk 0:00:22.9]} 33. Kd3 {[%clk
0:00:31.9]} 33... Rc8 {[%clk 0:00:15.5]} 34. Rg3 {[%clk 0:00:26.9]} 34... Qd1+
{[%clk 0:00:15.1]} 35. Qd2 {[%clk 0:00:20.2]} 35... Qxd2# {[%clk 0:00:13.9]} 0-1

[Event "Late-Titled-Tuesday-Blitz-June-18-2024"]
[Site "Chess.com"]
[Date "2024.06.18"]
[Round "11"]
[White "DanielNaroditsky"]
[Black "rasmussvane"]
[Result "1-0"]
[WhiteElo "3135"]
[BlackElo "2975"]
[TimeControl "180+1"]
[EndTime "16:06:15 PDT"]
[Termination "DanielNaroditsky won on time"]

1. Nf3 {[%clk 0:03:00.9]} 1... d5 {[%clk 0:02:59]} 2. g3 {[%clk 0:03:00.5]} 2...
Nf6 {[%clk 0:02:58.1]} 3. Bg2 {[%clk 0:03:01.1]} 3... e6 {[%clk 0:02:58.8]} 4.
O-O {[%clk 0:03:01.2]} 4... Be7 {[%clk 0:02:59.5]} 5. d3 {[%clk 0:03:02]} 5...
O-O {[%clk 0:03:00.2]} 6. Nbd2 {[%clk 0:03:02.9]} 6... Nc6 {[%clk 0:03:00.9]} 7.
e4 {[%clk 0:03:03.7]} 7... dxe4 {[%clk 0:03:01.8]} 8. dxe4 {[%clk 0:03:04.1]}
8... e5 {[%clk 0:03:02.5]} 9. c3 {[%clk 0:03:04.8]} 9... a5 {[%clk 0:03:02.2]}
10. a4 {[%clk 0:03:04.9]} 10... Bc5 {[%clk 0:03:00.6]} 11. Qc2 {[%clk
0:03:03.9]} 11... Be6 {[%clk 0:02:29.6]} 12. Ng5 {[%clk 0:03:00.6]} 12... Bd7
{[%clk 0:02:27.4]} 13. Nc4 {[%clk 0:02:57.2]} 13... Qe7 {[%clk 0:02:17.1]} 14.
Ne3 {[%clk 0:02:44.6]} 14... Bxe3 {[%clk 0:02:15]} 15. Bxe3 {[%clk 0:02:44.1]}
15... h6 {[%clk 0:02:11.9]} 16. Nf3 {[%clk 0:02:44.5]} 16... Be6 {[%clk
0:02:12.4]} 17. Nh4 {[%clk 0:02:43.9]} 17... Rfd8 {[%clk 0:02:08.6]} 18. Nf5
{[%clk 0:02:44.4]} 18... Bxf5 {[%clk 0:01:50.5]} 19. exf5 {[%clk 0:02:45.3]}
19... e4 {[%clk 0:01:51.1]} 20. Rfe1 {[%clk 0:02:43.1]} 20... Rd5 {[%clk
0:01:30.7]} 21. Bf4 {[%clk 0:02:18.6]} 21... Re8 {[%clk 0:01:18.6]} 22. Qb3
{[%clk 0:02:15.6]} 22... b6 {[%clk 0:01:13.1]} 23. Bxe4 {[%clk 0:02:14.1]} 23...
Rc5 {[%clk 0:00:50.1]} 24. Bf3 {[%clk 0:01:39.9]} 24... Qxe1+ {[%clk 0:00:48]}
25. Rxe1 {[%clk 0:01:40.8]} 25... Rxe1+ {[%clk 0:00:48.5]} 26. Kg2 {[%clk
0:01:41.7]} 26... Ne5 {[%clk 0:00:42.8]} 27. Be3 {[%clk 0:01:34.6]} 27... Rxe3
{[%clk 0:00:27.8]} 28. fxe3 {[%clk 0:01:34]} 28... Nxf3 {[%clk 0:00:28.2]} 29.
Kxf3 {[%clk 0:01:34.3]} 29... Rxf5+ {[%clk 0:00:28.7]} 30. Ke2 {[%clk
0:01:32.5]} 30... Rc5 {[%clk 0:00:22.4]} 31. Qc2 {[%clk 0:01:29.2]} 31... Kf8
{[%clk 0:00:20.3]} 32. Qd3 {[%clk 0:01:26.6]} 32... Ke7 {[%clk 0:00:20.5]} 33.
b4 {[%clk 0:01:24.1]} 33... Rd5 {[%clk 0:00:15.3]} 34. Qc4 {[%clk 0:01:24.6]}
34... c5 {[%clk 0:00:09.7]} 35. bxa5 {[%clk 0:01:22.3]} 35... bxa5 {[%clk
0:00:10.2]} 36. Qb5 {[%clk 0:01:21.3]} 36... c4 {[%clk 0:00:10.7]} 37. Qxc4
{[%clk 0:01:21.7]} 37... Kd6 {[%clk 0:00:07.2]} 38. Qa6+ {[%clk 0:01:22]} 38...
Ke7 {[%clk 0:00:07.2]} 39. c4 {[%clk 0:01:21.6]} 39... Re5 {[%clk 0:00:06]} 40.
Qb7+ {[%clk 0:01:15.4]} 40... Nd7 {[%clk 0:00:06.1]} 41. Kd2 {[%clk 0:01:16]}
41... h5 {[%clk 0:00:04.4]} 42. h3 {[%clk 0:01:15.7]} 42... Rg5 {[%clk
0:00:03.5]} 43. h4 {[%clk 0:01:13]} 43... Re5 {[%clk 0:00:03.5]} 44. Qc7 {[%clk
0:01:09.1]} 44... g6 {[%clk 0:00:03]} 45. Kd3 {[%clk 0:01:05.2]} 45... Rc5
{[%clk 0:00:02.9]} 46. Qa7 {[%clk 0:01:05.6]} 46... Kd6 {[%clk 0:00:02]} 47. Kd4
{[%clk 0:01:04.1]} 47... Rf5 {[%clk 0:00:02.4]} 48. e4 {[%clk 0:01:00.4]} 48...
Rf1 {[%clk 0:00:01.2]} 49. c5+ {[%clk 0:00:59.5]} 1-0

[Event "Late-Titled-Tuesday-Blitz-June-18-2024"]
[Site "Chess.com"]
[Date "2024.06.18"]
[Round "11"]
[White "BillCoe"]
[Black "Cuchulin"]
[Result "1-0"]
[WhiteElo "2117"]
[BlackElo "2258"]
[TimeControl "180+1"]
[EndTime "16:06:19 PDT"]
[Termination "BillCoe won on time"]

1. e4 {[%clk 0:03:00.9]} 1... c5 {[%clk 0:02:59.9]} 2. Nf3 {[%clk 0:03:00.9]}
2... Nc6 {[%clk 0:03:00]} 3. Bb5 {[%clk 0:03:00.5]} 3... g6 {[%clk 0:02:58.8]}
4. O-O {[%clk 0:02:59.4]} 4... Bg7 {[%clk 0:02:58.6]} 5. Re1 {[%clk 0:02:58.8]}
5... Nd4 {[%clk 0:02:57.8]} 6. Bf1 {[%clk 0:02:55.7]} 6... d6 {[%clk 0:02:55.5]}
7. c3 {[%clk 0:02:55.9]} 7... Nxf3+ {[%clk 0:02:47.2]} 8. Qxf3 {[%clk
0:02:56.8]} 8... Nf6 {[%clk 0:02:46.9]} 9. d4 {[%clk 0:02:54.1]} 9... cxd4
{[%clk 0:02:45.5]} 10. cxd4 {[%clk 0:02:53.8]} 10... O-O {[%clk 0:02:45.4]} 11.
Nc3 {[%clk 0:02:52.9]} 11... e5 {[%clk 0:02:38.4]} 12. d5 {[%clk 0:02:44.3]}
12... Bg4 {[%clk 0:02:32.3]} 13. Qe3 {[%clk 0:02:40.1]} 13... Bd7 {[%clk
0:02:26.7]} 14. a3 {[%clk 0:02:34.1]} 14... a6 {[%clk 0:02:26.2]} 15. b4 {[%clk
0:02:33.3]} 15... b5 {[%clk 0:02:25]} 16. Bb2 {[%clk 0:02:32.1]} 16... Qc7
{[%clk 0:02:18.3]} 17. Rec1 {[%clk 0:02:30.9]} 17... Qb7 {[%clk 0:02:17.5]} 18.
Rc2 {[%clk 0:02:25.2]} 18... Rac8 {[%clk 0:02:16.6]} 19. Rac1 {[%clk 0:02:20.7]}
19... Ng4 {[%clk 0:02:13.6]} 20. Qe2 {[%clk 0:02:17.3]} 20... f5 {[%clk
0:02:13.5]} 21. h3 {[%clk 0:02:13.3]} 21... Nf6 {[%clk 0:02:11.5]} 22. f3 {[%clk
0:02:10]} 22... Bh6 {[%clk 0:01:56.9]} 23. Re1 {[%clk 0:02:07.6]} 23... fxe4
{[%clk 0:01:52.3]} 24. fxe4 {[%clk 0:02:07]} 24... Nh5 {[%clk 0:01:50.8]} 25.
Bc1 {[%clk 0:01:57.5]} 25... Ng3 {[%clk 0:01:16.8]} 26. Qd3 {[%clk 0:01:44.2]}
26... Qb6+ {[%clk 0:01:09.3]} 27. Kh2 {[%clk 0:01:44.4]} 27... Bf4 {[%clk
0:00:46.7]} 28. Bxf4 {[%clk 0:01:42.3]} 28... exf4 {[%clk 0:00:46.9]} 29. Rcc1
{[%clk 0:01:28.4]} 29... Qf2 {[%clk 0:00:42.7]} 30. Qf3 {[%clk 0:01:28.7]} 30...
Qxf3 {[%clk 0:00:28]} 31. gxf3 {[%clk 0:01:29.6]} 31... Rc7 {[%clk 0:00:25.8]}
32. Ne2 {[%clk 0:01:19.6]} 32... Rfc8 {[%clk 0:00:11.1]} 33. Rxc7 {[%clk
0:01:16.5]} 33... Rxc7 {[%clk 0:00:12]} 34. Nxg3 {[%clk 0:01:14.6]} 34... fxg3+
{[%clk 0:00:12.3]} 35. Kxg3 {[%clk 0:01:13]} 35... Rc3 {[%clk 0:00:12.9]} 36. e5
{[%clk 0:01:07.9]} 36... dxe5 {[%clk 0:00:10.8]} 37. Rxe5 {[%clk 0:01:08.8]}
37... Kf7 {[%clk 0:00:03.3]} 38. h4 {[%clk 0:00:44.6]} 38... Rxa3 {[%clk
0:00:02]} 39. d6 {[%clk 0:00:36.9]} 39... Be6 {[%clk 0:00:01.5]} 40. Rc5 {[%clk
0:00:37.1]} 1-0

[Event "Late-Titled-Tuesday-Blitz-June-18-2024"]
[Site "Chess.com"]
[Date "2024.06.18"]
[Round "11"]
[White "SocoLoco"]
[Black "KebabJangles"]
[Result "1-0"]
[WhiteElo "2179"]
[BlackElo "2273"]
[TimeControl "180+1"]
[EndTime "16:06:20 PDT"]
[Termination "SocoLoco won by checkmate"]

1. e4 {[%clk 0:03:00]} 1... c5 {[%clk 0:02:59.3]} 2. Nc3 {[%clk 0:02:58.1]} 2...
e6 {[%clk 0:02:59.3]} 3. d3 {[%clk 0:02:57.9]} 3... d5 {[%clk 0:02:56.4]} 4. Bd2
{[%clk 0:02:57.6]} 4... d4 {[%clk 0:02:55.4]} 5. Nce2 {[%clk 0:02:57.6]} 5...
Nc6 {[%clk 0:02:45.1]} 6. g3 {[%clk 0:02:57.4]} 6... f5 {[%clk 0:02:33.8]} 7.
Bg2 {[%clk 0:02:50.8]} 7... Nf6 {[%clk 0:02:33.7]} 8. f3 {[%clk 0:02:50]} 8...
Bd6 {[%clk 0:02:33.2]} 9. Nh3 {[%clk 0:02:49.7]} 9... O-O {[%clk 0:02:32.8]} 10.
O-O {[%clk 0:02:49.3]} 10... fxe4 {[%clk 0:02:32.3]} 11. dxe4 {[%clk 0:02:47.5]}
11... e5 {[%clk 0:02:31.9]} 12. f4 {[%clk 0:02:25.1]} 12... Bxh3 {[%clk
0:02:30]} 13. Bxh3 {[%clk 0:02:24.6]} 13... Nxe4 {[%clk 0:02:29.1]} 14. Bg2
{[%clk 0:02:08.6]} 14... Nxd2 {[%clk 0:02:28.3]} 15. Qxd2 {[%clk 0:02:08.9]}
15... exf4 {[%clk 0:02:28]} 16. Nxf4 {[%clk 0:02:08.1]} 16... Bxf4 {[%clk
0:02:26.9]} 17. Rxf4 {[%clk 0:02:07.9]} 17... Rxf4 {[%clk 0:02:24.8]} 18. Qxf4
{[%clk 0:02:08.8]} 18... Qd7 {[%clk 0:02:24.3]} 19. Rf1 {[%clk 0:02:05]} 19...
h6 {[%clk 0:02:16.7]} 20. Be4 {[%clk 0:01:59.3]} 20... Re8 {[%clk 0:02:15.5]}
21. Bg6 {[%clk 0:01:49.6]} 21... Rd8 {[%clk 0:02:11.6]} 22. Qe4 {[%clk
0:00:56.5]} 22... Qe7 {[%clk 0:02:07]} 23. Qf5 {[%clk 0:00:42]} 23... Rf8 {[%clk
0:01:53.8]} 24. Bh7+ {[%clk 0:00:34.2]} 24... Kh8 {[%clk 0:01:51.3]} 25. Qxf8+
{[%clk 0:00:34.5]} 25... Qxf8 {[%clk 0:01:52.1]} 26. Rxf8+ {[%clk 0:00:35.1]}
26... Kxh7 {[%clk 0:01:53]} 27. Rc8 {[%clk 0:00:34.4]} 27... c4 {[%clk
0:01:46.9]} 28. Kf1 {[%clk 0:00:33.6]} 28... Na5 {[%clk 0:01:43.4]} 29. Rc7
{[%clk 0:00:32.1]} 29... a6 {[%clk 0:01:42.2]} 30. Ke1 {[%clk 0:00:32]} 30...
Kg6 {[%clk 0:01:41.3]} 31. Kd2 {[%clk 0:00:30.5]} 31... Kf6 {[%clk 0:01:37.8]}
32. b4 {[%clk 0:00:24.9]} 32... cxb3 {[%clk 0:01:34.4]} 33. axb3 {[%clk
0:00:19.9]} 33... b5 {[%clk 0:01:32.2]} 34. Kd3 {[%clk 0:00:19.3]} 34... g5
{[%clk 0:01:29.5]} 35. Kxd4 {[%clk 0:00:17.5]} 35... Kf5 {[%clk 0:01:29.5]} 36.
Rh7 {[%clk 0:00:12.5]} 36... Kg6 {[%clk 0:01:29]} 37. Rh8 {[%clk 0:00:12.8]}
37... Nc6+ {[%clk 0:01:28]} 38. Kc5 {[%clk 0:00:13.3]} 38... Ne5 {[%clk
0:01:28.9]} 39. Kb6 {[%clk 0:00:13.2]} 39... Nf3 {[%clk 0:01:29.2]} 40. Kxa6
{[%clk 0:00:13.1]} 40... Nd4 {[%clk 0:01:29.8]} 41. Kb6 {[%clk 0:00:12.9]} 41...
Nxc2 {[%clk 0:01:29.8]} 42. Kxb5 {[%clk 0:00:13.2]} 42... Nd4+ {[%clk
0:01:30.4]} 43. Kc4 {[%clk 0:00:13.7]} 43... Nf3 {[%clk 0:01:30.7]} 44. b4
{[%clk 0:00:14.2]} 44... Nxh2 {[%clk 0:01:30.9]} 45. b5 {[%clk 0:00:15.1]} 45...
Nf3 {[%clk 0:01:28.7]} 46. b6 {[%clk 0:00:15.1]} 46... Ne5+ {[%clk 0:01:29]} 47.
Kd5 {[%clk 0:00:15.6]} 47... Nd7 {[%clk 0:01:29.4]} 48. Kc6 {[%clk 0:00:16.1]}
48... Nxb6 {[%clk 0:01:29.2]} 49. Kxb6 {[%clk 0:00:17]} 49... h5 {[%clk
0:01:29.8]} 50. Kc5 {[%clk 0:00:17.9]} 50... Kf5 {[%clk 0:01:29.4]} 51. Kd4
{[%clk 0:00:18.1]} 51... Kg4 {[%clk 0:01:29.5]} 52. Ke3 {[%clk 0:00:18.3]} 52...
Kxg3 {[%clk 0:01:29.8]} 53. Rxh5 {[%clk 0:00:18]} 53... g4 {[%clk 0:01:30.3]}
54. Ke2 {[%clk 0:00:18.3]} 54... Kg2 {[%clk 0:01:30.3]} 55. Ke1 {[%clk
0:00:17.8]} 55... g3 {[%clk 0:01:30.4]} 56. Rh4 {[%clk 0:00:17.5]} 56... Kg1
{[%clk 0:01:30.2]} 57. Rh8 {[%clk 0:00:13.4]} 57... Kg2 {[%clk 0:01:29.6]} 58.
Rg8 {[%clk 0:00:11.3]} 58... Kh2 {[%clk 0:01:27.2]} 59. Kf1 {[%clk 0:00:11.4]}
59... Kh3 {[%clk 0:01:26.9]} 60. Kg1 {[%clk 0:00:11.6]} 60... Kh4 {[%clk
0:01:26.1]} 61. Kg2 {[%clk 0:00:12.2]} 61... Kh5 {[%clk 0:01:27]} 62. Rxg3
{[%clk 0:00:12.2]} 62... Kh6 {[%clk 0:01:27.9]} 63. Kf3 {[%clk 0:00:12.9]} 63...
Kh7 {[%clk 0:01:28.8]} 64. Kf4 {[%clk 0:00:13.7]} 64... Kh6 {[%clk 0:01:29.6]}
65. Kf5 {[%clk 0:00:13.9]} 65... Kh7 {[%clk 0:01:29.5]} 66. Rg2 {[%clk
0:00:14.4]} 66... Kh6 {[%clk 0:01:30.1]} 67. Rg1 {[%clk 0:00:13.4]} 67... Kh7
{[%clk 0:01:31]} 68. Kf6 {[%clk 0:00:13.4]} 68... Kh6 {[%clk 0:01:31.9]} 69.
Rh1# {[%clk 0:00:13.6]} 1-0